bitfinex/quotes_ETHUSD_20250413
["timestamp","ask_amount","ask_price","bid_price","bid_amount"]
[1744538578388,19.0335613,1623.2,1623.1,1e-05]
[1744538578691,19.5835613,1623.2,1623.1,1e-05]
[1744538579897,18.2691613,1623.2,1623.1,1e-05]
[1744538580299,18.8191613,1623.2,1623.1,1e-05]
[1744538582268,18.2691613,1623.2,1623.1,1e-05]
[1744538583297,18.8191613,1623.2,1623.1,1e-05]
[1744538583504,18.2691613,1623.2,1623.1,1e-05]
[1744538583708,19.6508613,1623.2,1623.1,1e-05]
[1744538587174,16.6508613,1623.2,1623.1,1e-05]
[1744538587631,19.1008613,1623.2,1623.1,1e-05]
[1744538587972,19.6508613,1623.2,1623.1,1e-05]
[1744538589608,18.8191613,1623.2,1623.1,1e-05]
[1744538591707,12.27067,1623.2,1623.1,1e-05]
[1744538592271,15.27067,1623.2,1623.1,1e-05]
[1744538592804,16.65117,1623.2,1623.1,1e-05]
[1744538593178,6.16344,1622.5,1622.2,0.7956]
[1744538593477,12.32542,1622.7,1622.4,0.7956]
[1744538593695,6.16298,1622.6,1622.4,0.7956]
[1744538593902,6.1626,1622.7,1622.4,0.7956]
[1744538594105,12.3254,1622.7,1622.5,0.7956]
[1744538594306,6.16294,1622.6,1622.5,0.7956]
[1744538597582,12.32534,1622.7,1622.5,0.7956]
[1744538597789,6.16183,1622.9,1622.6,6.16293]
[1744538597790,6.16184,1622.9,1622.6,6.16293]
[1744538598027,6.16151,1623.0,1622.6,0.695853]
[1744538598227,6.16118,1623.1,1622.8,0.7984]
[1744538598528,6.16144,1623.0,1622.8,0.7984]
[1744538598701,12.32227,1623.1,1622.8,0.7984]
[1744538599027,12.32306,1623.0,1622.8,0.7984]
[1744538599225,6.16145,1623.0,1622.8,0.7984]
[1744538601393,6.11,1623.2,1623.0,0.8172]
[1744538601631,6.16084,1623.2,1623.0,0.8172]
[1744538601802,12.32188,1623.2,1623.0,0.8172]
[1744538602189,6.16029,1623.3,1623.0,0.8172]
[1744538602805,12.32081,1623.3,1623.0,0.8172]
[1744538603202,6.16104,1623.1,1623.0,0.8172]
[1744538604929,6.16074,1623.2,1623.0,0.8172]
[1744538605351,6.16033,1623.3,1623.0,0.8172]
[1744538605949,6.16033,1623.3,1623.0,6.97857]
[1744538606313,6.16033,1623.3,1623.0,0.8172]
[1744538606636,6.16104,1623.1,1623.0,0.8172]
[1744538608304,7.393233,1623.1,1623.0,0.8172]
[1744538608609,7.393323,1623.1,1622.8,0.8229]
[1744538608813,12.32162,1623.2,1622.8,6.98484]
[1744538609025,6.16075,1623.2,1622.9,0.8229]
[1744538609333,6.16107,1623.1,1622.9,0.8229]
[1744538609505,12.32231,1623.1,1622.9,0.8229]
[1744538609707,6.16081,1623.2,1622.9,6.98465]
[1744538609946,6.16081,1623.2,1622.9,0.8229]
[1744538610339,12.32178,1623.2,1622.9,0.8229]
[1744538611343,9.70443461,1623.5,1622.9,0.8229]
[1744538611640,6.16142,1623.0,1622.9,0.8229]
[1744538612336,12.32253,1623.1,1622.9,0.8229]
[1744538612535,6.16142,1623.0,1622.9,0.8229]
[1744538613142,12.32247,1623.1,1622.9,0.8229]
[1744538613350,6.16142,1623.0,1622.9,0.8229]
[1744538616043,6.16205,1622.9,1622.7,0.8068]
[1744538616341,7.393694,1623.0,1622.7,0.8068]
[1744538616548,6.16183,1622.9,1622.7,0.8068]
[1744538616922,6.16143,1623.0,1622.7,0.8068]
[1744538618136,12.32304,1623.0,1622.7,0.8068]
[1744538618318,6.16143,1623.0,1622.7,0.8068]
[1744538618517,12.32302,1623.0,1622.7,0.8068]
[1744538620216,6.16143,1623.0,1622.7,8.282476]
[1744538620429,6.1611,1623.1,1622.8,6.16206]
[1744538620634,6.16146,1623.0,1622.7,14.444886]
[1744538620815,6.16146,1623.0,1622.7,8.282456]
[1744538622117,6.16146,1623.0,1622.7,14.444906]
[1744538622338,6.16024,1623.4,1623.0,0.7701]
[1744538622645,12.26919,1623.6,1622.8,6.16218]
[1744538622850,6.15919,1623.6,1623.3,0.7701]
[1744538623215,6.16067,1623.2,1623.1,0.7701]
[1744538623434,12.32014,1623.4,1623.1,0.7701]
[1744538623619,6.57528277,1623.6,1623.1,0.7701]
[1744538623620,6.16042,1623.3,1623.1,0.7701]
[1744538624556,6.16067,1623.2,1623.1,0.7701]
[1744538624854,6.16121,1623.1,1622.9,0.7701]
[1744538625961,6.16042,1623.3,1622.9,6.93158]
[1744538626119,12.32105,1623.3,1622.9,7.624738]
[1744538626319,6.1607,1623.2,1622.9,0.7701]
[1744538626522,12.32156,1623.2,1622.9,0.7701]
[1744538627633,12.32077,1623.3,1622.9,6.93185]
[1744538627846,6.16035,1623.3,1622.9,6.93179]
[1744538628636,6.16035,1623.3,1623.0,6.16133]
[1744538629558,6.15996,1623.4,1623.1,0.7721]
[1744538629757,6.15959,1623.5,1623.1,6.93286]
[1744538629758,12.31931,1623.5,1623.1,6.93286]
[1744538630054,13.1405,1623.6,1623.1,0.7721]
[1744538630055,6.15991,1623.4,1623.1,0.7721]
[1744538631758,6.15953,1623.5,1623.1,0.7721]
[1744538631937,6.16067,1623.2,1623.1,0.7721]
[1744538632858,12.32157,1623.2,1622.9,0.8268]
[1744538633266,6.16106,1623.1,1622.9,0.8268]
[1744538633560,12.32244,1623.1,1622.9,0.8268]
[1744538633763,6.16142,1623.0,1622.7,6.98927]
[1744538634069,6.16202,1622.9,1622.7,0.8268]
[1744538635161,6.16151,1623.0,1622.7,6.98934]
[1744538635375,6.16106,1623.1,1622.8,6.16214]
[1744538635539,12.3216,1623.2,1622.9,0.8268]
[1744538635873,13.0734373,1623.3,1622.9,13.14997]
[1744538636070,13.0735573,1623.3,1622.9,13.14997]
[1744538636436,6.16078,1623.2,1622.9,6.9883]
[1744538636641,12.32167,1623.2,1622.9,6.9883]
[1744538637173,12.32163,1623.2,1622.9,6.9883]
[1744538637553,6.16078,1623.2,1622.9,13.14996]
[1744538637740,6.16078,1623.2,1622.9,6.9883]
[1744538639375,6.16002,1623.4,1623.0,6.16142]
[1744538639581,6.15961,1623.5,1623.1,13.08051]
[1744538639876,6.15961,1623.5,1623.1,7.17691551]
[1744538640054,6.16012,1623.4,1623.1,7.17691551]
[1744538640253,6.15953,1623.5,1623.1,8.25348755]
[1744538640578,12.2693,1623.6,1623.3,0.7589]
[1744538640772,6.15958,1623.5,1623.3,0.7589]
[1744538645650,12.3193,1623.5,1623.3,0.7589]
[1744538646053,6.15958,1623.5,1623.3,0.7589]
[1744538647183,12.31931,1623.5,1623.3,0.7589]
[1744538647396,12.31931,1623.5,1623.2,6.16049]
[1744538648081,6.16033,1623.3,1623.1,0.82]
[1744538648384,6.16001,1623.4,1623.1,6.98084]
[1744538649558,6.16001,1623.4,1623.1,0.82]
[1744538649891,6.16043,1623.3,1623.1,0.82]
[1744538650056,6.16092,1623.2,1622.9,0.82]
[1744538650385,6.16083,1623.2,1622.9,0.82]
[1744538650554,6.16045,1623.3,1622.9,8.296174]
[1744538650757,6.16045,1623.3,1622.9,6.98165]
[1744538650986,6.1607,1623.2,1622.9,6.98165]
[1744538651288,6.16138,1623.1,1622.9,0.82]
[1744538651503,6.1612,1623.1,1622.9,0.82]
[1744538651874,12.32314,1623.0,1622.7,6.9946]
[1744538652080,12.32304,1623.0,1622.7,6.9946]
[1744538652275,12.32304,1623.0,1622.7,6.94112]
[1744538652456,12.32304,1623.0,1622.8,0.2573254]
[1744538652652,12.32304,1623.0,1622.7,0.7786]
[1744538653589,6.16181,1622.9,1622.7,0.7786]
[1744538655298,12.32474,1622.8,1622.4,19.3217]
[1744538655503,6.16218,1622.8,1622.4,19.3217]
[1744538655801,6.16218,1622.8,1622.5,6.16323]
[1744538655975,6.16218,1622.8,1622.5,6.4204675]
[1744538656309,6.16218,1622.8,1622.4,13.15814]
[1744538656458,6.16268,1622.7,1622.4,13.15814]
[1744538656657,6.16218,1622.8,1622.4,20.637534]
[1744538657496,6.16218,1622.8,1622.4,20.637494]
[1744538657659,7.393874,1623.0,1622.7,6.98442]
[1744538657861,12.3216,1623.2,1622.9,6.16169]
[1744538658066,12.32161,1623.2,1622.8,12.32405]
[1744538658266,6.16075,1623.2,1622.8,12.32405]
[1744538658463,12.32163,1623.2,1622.9,6.16178]
[1744538658777,6.16035,1623.3,1623.0,0.822]
[1744538658999,6.16035,1623.3,1623.0,7.68179]
[1744538659200,6.972,1623.4,1623.0,7.68168]
[1744538659201,13.13197,1623.4,1623.0,7.68168]
[1744538659400,13.13197,1623.4,1623.0,13.84298]
[1744538659565,6.216,1623.4,1623.1,12.32194]
[1744538659767,12.31936,1623.5,1623.1,6.1609]
[1744538660184,6.16029,1623.3,1623.0,7.68176]
[1744538660507,6.91629,1623.3,1623.0,0.822]
[1744538660797,6.16067,1623.2,1623.0,0.822]
[1744538661157,6.91629,1623.3,1623.0,0.822]
[1744538661363,6.15998,1623.4,1623.0,6.98309]
[1744538661597,6.15998,1623.4,1623.1,6.16101]
[1744538661764,12.32015,1623.4,1623.0,6.98309]
[1744538661966,12.32015,1623.4,1623.0,8.297571]
[1744538662506,6.15998,1623.4,1623.0,8.297571]
[1744538662709,6.91155,1623.5,1623.1,6.16088]
[1744538663197,6.16002,1623.4,1623.1,6.16088]
[1744538663391,12.32012,1623.4,1623.1,6.16088]
[1744538663695,12.32092,1623.3,1623.0,2.136481]
[1744538663895,6.16083,1623.2,1623.0,0.822]
[1744538664095,6.16031,1623.3,1623.0,6.9834]
[1744538665182,1.307192,1623.4,1622.9,6.16164]
[1744538665394,6.16041,1623.3,1622.9,6.16163]
[1744538665698,6.16041,1623.3,1623.0,6.1613]
[1744538665893,6.16041,1623.3,1623.1,0.7734]
[1744538666320,13.07108,1623.5,1623.1,6.93428]
[1744538666546,6.16009,1623.4,1623.1,6.93428]
[1744538666684,6.16009,1623.4,1623.1,13.09519]
[1744538666884,6.16009,1623.4,1623.1,13.0952]
[1744538667103,6.16009,1623.4,1623.1,6.93428]
[1744538668471,6.16009,1623.4,1623.1,8.243841]
[1744538668931,6.16044,1623.3,1622.9,6.16173]
[1744538669080,6.16071,1623.2,1623.0,0.7734]
[1744538669781,12.32168,1623.2,1622.8,13.15247]
[1744538669987,6.16105,1623.1,1622.8,13.15247]
[1744538670579,12.32228,1623.1,1622.8,6.9904]
[1744538670770,6.16159,1623.0,1622.8,6.9904]
[1744538670971,6.16159,1623.0,1622.8,0.7734]
[1744538671192,12.32318,1623.0,1622.8,0.7734]
[1744538672103,12.32318,1623.0,1622.7,6.16245]
[1744538676486,6.16211,1622.9,1622.6,0.819]
[1744538676811,6.16218,1622.8,1622.6,0.819]
[1744538677111,12.32455,1622.8,1622.6,0.819]
[1744538677273,6.16259,1622.7,1622.5,6.173]
[1744538677473,6.16294,1622.6,1622.4,0.774]
[1744538677703,6.16338,1622.5,1622.3,0.774]
[1744538678013,0.8204,1622.6,1622.2,12.33738]
[1744538678217,12.32628,1622.6,1622.3,6.16394]
[1744538678518,6.16333,1622.5,1622.2,12.33738]
[1744538678805,6.16333,1622.5,1622.2,12.33734]
[1744538679208,6.16333,1622.5,1622.2,18.50163]
[1744538679423,13.558948,1622.6,1622.2,12.33729]
[1744538679627,6.16333,1622.5,1622.2,12.33729]
[1744538679984,7.395748,1622.6,1622.2,12.33729]
[1744538680200,13.558978,1622.6,1622.2,12.33729]
[1744538680628,12.32691,1622.5,1622.2,12.33729]
[1744538680815,12.32691,1622.5,1622.2,6.173]
[1744538681637,6.1634,1622.5,1622.2,6.173]
[1744538681937,12.32693,1622.5,1622.2,6.173]
[1744538682735,12.32693,1622.5,1622.1,13.12347]
[1744538682932,13.10733,1622.5,1622.1,8.271057]
[1744538683088,6.16372,1622.4,1622.1,0.794]
[1744538683290,6.16408,1622.3,1622.1,0.794]
[1744538683633,6.16408,1622.3,1622.1,0.02]
[1744538685217,6.16446,1622.2,1622.1,0.02]
[1744538685719,12.32852,1622.3,1622.1,0.02]
[1744538687692,6.16446,1622.2,1622.1,0.02]
[1744538688239,8.163614,1622.2,1622.1,0.02]
[1744538689503,6.93076,1622.2,1622.1,0.02]
[1744538689851,6.16446,1622.2,1622.1,0.02]
[1744538690131,12.32835,1622.3,1622.1,0.02]
[1744538690294,6.16408,1622.3,1622.1,0.02]
[1744538690498,12.3284,1622.3,1622.1,0.02]
[1744538690929,6.16408,1622.3,1622.1,0.02]
[1744538691445,13.09395,1622.4,1622.1,0.02]
[1744538692614,6.16334,1622.5,1622.2,6.16432]
[1744538692816,12.32691,1622.5,1622.2,6.16432]
[1744538693603,6.16371,1622.4,1622.1,7.496549]
[1744538693798,6.16422,1622.3,1622.1,0.02]
[1744538694044,6.16446,1622.2,1622.1,0.02]
[1744538697247,6.92912,1622.3,1622.1,0.02]
[1744538697410,13.0934,1622.3,1622.1,0.02]
[1744538697906,6.92912,1622.3,1622.1,0.02]
[1744538698110,6.16422,1622.3,1622.1,0.02]
[1744538698720,6.16446,1622.2,1622.1,0.02]
[1744538699244,6.16422,1622.3,1622.1,0.02]
[1744538699440,13.561331,1622.3,1622.1,0.02]
[1744538699620,13.561291,1622.3,1622.1,0.02]
[1744538700023,6.16446,1622.2,1622.1,0.02]
[1744538700423,6.16422,1622.3,1622.1,0.02]
[1744538700815,6.16446,1622.2,1622.1,0.02]
[1744538701346,8.152128,1622.2,1622.1,0.02]
[1744538710399,6.16446,1622.2,1622.1,0.02]
[1744538711199,6.91816,1622.2,1622.1,0.02]
[1744538711778,10.46816,1622.2,1622.1,0.02]
[1744538712993,10.39065953,1622.2,1622.1,0.02]
[1744538714484,9.91816,1622.2,1622.1,0.02]
[1744538714685,12.142825,1622.2,1622.1,0.02]
[1744538715112,12.642825,1622.2,1622.1,0.02]
[1744538716108,12.142825,1622.2,1622.1,0.02]
[1744538716674,11.389125,1622.2,1622.1,0.02]
[1744538716972,6.16446,1622.2,1622.1,0.02]
[1744538717178,12.29922,1622.3,1622.1,0.02]
[1744538717682,18.46348,1622.3,1622.1,0.02]
[1744538717899,12.27347,1622.5,1622.1,6.18465]
[1744538718237,6.11,1622.5,1622.2,1.371965]
[1744538718416,6.16386,1622.4,1622.2,0.7535]
[1744538718716,12.2734,1622.5,1622.2,0.7535]
[1744538718924,6.16373,1622.4,1622.2,0.7535]
[1744538719282,12.2734,1622.5,1622.2,0.7535]
[1744538720316,6.16296,1622.6,1622.3,6.16387]
[1744538720620,6.16296,1622.6,1622.3,6.855607]
[1744538721491,6.16335,1622.5,1622.3,0.691737]
[1744538722010,6.16296,1622.6,1622.3,0.691737]
[1744538722190,12.32612,1622.6,1622.3,6.855777]
[1744538722516,12.32612,1622.6,1622.3,0.691737]
[1744538722711,6.16295,1622.6,1622.3,0.691737]
[1744538722888,6.16295,1622.6,1622.3,6.16397]
[1744538723083,6.16295,1622.6,1622.2,6.91789]
[1744538723289,6.16295,1622.6,1622.2,6.91771]
[1744538723490,6.16263,1622.7,1622.4,6.9208]
[1744538723690,12.32538,1622.7,1622.4,6.9208]
[1744538724024,12.32538,1622.7,1622.4,8.229275]
[1744538724218,6.16295,1622.6,1622.4,2.065575]
[1744538724413,0.7829,1622.5,1622.1,0.02]
[1744538724615,6.16408,1622.3,1622.2,0.7571]
[1744538725015,6.16407,1622.4,1622.2,0.7571]
[1744538725341,6.16371,1622.4,1622.2,0.7571]
[1744538725542,6.16408,1622.3,1622.2,0.7571]
[1744538726127,12.3276,1622.4,1622.2,0.7571]
[1744538726429,6.16371,1622.4,1622.2,0.7571]
[1744538726646,6.1642,1622.3,1622.1,0.8107]
[1744538726923,6.1642,1622.3,1622.1,0.02]
[1744538727099,6.16446,1622.2,1622.1,0.02]
[1744538727525,6.1642,1622.3,1622.1,0.02]
[1744538727705,12.32855,1622.3,1622.1,0.02]
[1744538728231,6.16446,1622.2,1622.1,0.02]
[1744538728433,6.95706,1622.2,1622.1,0.02]
[1744538728844,10.50706,1622.2,1622.1,0.02]
[1744538731994,6.16674,1621.6,1621.5,0.00740883]
[1744538732190,7.480487,1621.6,1621.5,0.00740883]
[1744538732394,8.09713417,1621.6,1621.5,0.00740883]
[1744538734160,6.16732,1621.5,1621.3,0.82]
[1744538734630,7.480537,1621.6,1621.3,6.98773]
[1744538734830,0.61664717,1621.4,1621.3,6.98773]
[1744538735024,7.480537,1621.6,1621.3,6.98773]
[1744538735236,0.61664717,1621.4,1621.3,6.98773]
[1744538735426,6.16679,1621.6,1621.3,6.98773]
[1744538735836,0.61664717,1621.5,1621.3,0.82]
[1744538736760,0.61664717,1621.5,1621.3,6.98784]
[1744538737147,0.61664717,1621.5,1621.3,6.98774]
[1744538737666,0.61664717,1621.5,1621.3,13.15547]
[1744538737822,0.61664717,1621.5,1621.3,6.9877]
[1744538738021,6.16684,1621.6,1621.3,6.9877]
[1744538738223,0.61664717,1621.4,1621.3,6.9877]
[1744538738422,6.1668,1621.6,1621.3,6.9877]
[1744538738648,0.61664717,1621.4,1621.3,6.9877]
[1744538738864,6.1668,1621.6,1621.3,6.9877]
[1744538739059,0.61664717,1621.4,1621.3,6.9877]
[1744538739950,6.16679,1621.6,1621.3,6.9877]
[1744538740154,0.61664717,1621.4,1621.3,6.9877]
[1744538740345,6.16679,1621.6,1621.3,6.9877]
[1744538740540,0.61664717,1621.4,1621.3,6.9877]
[1744538740746,6.16679,1621.6,1621.3,6.9877]
[1744538741040,0.61664717,1621.4,1621.3,6.9877]
[1744538741247,6.16679,1621.6,1621.3,6.9877]
[1744538741751,0.61664717,1621.5,1621.3,6.9877]
[1744538743660,6.16679,1621.6,1621.3,6.9877]
[1744538743839,0.61664717,1621.4,1621.3,6.9877]
[1744538744039,6.16679,1621.6,1621.3,6.9877]
[1744538744251,0.61664717,1621.4,1621.3,6.9877]
[1744538744746,12.33373,1621.6,1621.3,6.9877]
[1744538744946,0.61664717,1621.4,1621.3,6.9877]
[1744538745146,12.33373,1621.6,1621.3,6.9877]
[1744538745377,0.61664717,1621.4,1621.3,6.9877]
[1744538745575,6.16713,1621.5,1621.3,0.82]
[1744538745875,0.61664717,1621.4,1621.3,0.82]
[1744538747653,0.61664717,1621.4,1621.3,6.98788]
[1744538747858,6.92721,1621.6,1621.3,6.98788]
[1744538748055,6.92721,1621.6,1621.3,6.98774]
[1744538748380,0.61464033,1621.5,1621.3,6.98774]
[1744538749074,0.61464033,1621.5,1621.3,0.82]
[1744538749471,6.78188033,1621.5,1621.3,0.82]
[1744538749877,6.78188033,1621.5,1621.2,6.93124]
[1744538750786,6.78188033,1621.5,1621.2,13.09935]
[1744538751082,0.61464033,1621.5,1621.2,13.09935]
[1744538751380,6.78187033,1621.5,1621.2,6.93121]
[1744538751579,6.78187033,1621.5,1621.2,13.09936]
[1744538751888,6.78187033,1621.5,1621.2,6.93121]
[1744538752383,0.61464033,1621.5,1621.2,13.09936]
[1744538753389,0.61464033,1621.5,1621.2,6.93121]
[1744538753685,0.61464033,1621.5,1621.2,13.09936]
[1744538753980,0.61464033,1621.5,1621.3,6.16788]
[1744538754162,0.61464033,1621.5,1621.2,13.09936]
[1744538754663,0.61464033,1621.5,1621.3,6.16788]
[1744538754886,12.94916033,1621.5,1621.2,6.93121]
[1744538755055,6.78183033,1621.5,1621.2,6.93121]
[1744538755586,6.78183033,1621.5,1621.2,13.09937]
[1744538755786,6.78183033,1621.5,1621.2,6.93121]
[1744538756656,6.78183033,1621.5,1621.2,13.09933]
[1744538757476,0.7946,1621.4,1621.2,6.16811]
[1744538757678,0.614204,1621.3,1621.1,6.18855]
[1744538757884,6.96221,1621.4,1621.1,6.18855]
[1744538758089,0.614204,1621.3,1621.1,6.18855]
[1744538758387,6.96221,1621.4,1621.1,6.18855]
[1744538758587,6.782474,1621.2,1621.1,0.02]
[1744538758885,0.6108884,1621.2,1621.1,0.02]
[1744538759061,0.6108884,1621.2,1621.1,6.18865]
[1744538759262,6.96142,1621.6,1621.1,0.02]
[1744538759467,0.6108884,1621.5,1621.2,13.15176]
[1744538759695,6.7780284,1621.5,1621.2,6.98353]
[1744538760190,0.6108884,1621.5,1621.2,13.15164]
[1744538760691,0.6108884,1621.5,1621.3,6.16788]
[1744538761655,0.6108884,1621.5,1621.2,6.98341]
[1744538761858,6.7780184,1621.5,1621.2,6.98341]
[1744538762288,6.7780184,1621.5,1621.2,13.15153]
[1744538763031,6.7780184,1621.5,1621.3,6.16783]
[1744538763032,0.6108884,1621.5,1621.3,6.16783]
[1744538763154,0.6108884,1621.5,1621.3,12.33558]
[1744538763807,0.6108884,1621.5,1621.4,6.1675]
[1744538764094,0.60347957,1621.5,1621.3,12.3355]
[1744538764316,0.60347957,1621.5,1621.3,13.65058]
[1744538764682,13.13201,1621.7,1621.3,13.65058]
[1744538764881,6.96546,1621.7,1621.4,6.16749]
[1744538765204,0.61024003,1621.6,1621.5,6.92789]
[1744538765370,6.11,1621.8,1621.5,13.09498]
[1744538765572,6.11,1621.8,1621.6,6.16661]
[1744538766839,6.11,1621.8,1621.6,12.33324]
[1744538767023,6.11,1621.8,1621.6,6.16661]
[1744538768421,6.16563,1621.9,1621.6,6.16661]
[1744538769417,6.16523,1622.0,1621.6,6.16661]
[1744538769578,6.16523,1622.0,1621.7,6.782991]
[1744538769979,12.33066,1622.0,1621.7,0.616661]
[1744538770304,6.16523,1622.0,1621.7,6.16619]
[1744538770887,6.16523,1622.0,1621.6,6.16665]
[1744538770888,12.33062,1622.0,1621.6,12.3333]
[1744538771090,6.16523,1622.0,1621.7,6.16634]
[1744538771396,6.93804,1622.3,1621.9,6.16543]
[1744538771593,13.10247,1622.3,1621.9,6.16543]
[1744538771901,13.10247,1622.3,1621.9,13.639924]
[1744538772549,6.93804,1622.3,1621.9,13.639924]
[1744538772823,13.10238,1622.3,1621.9,13.639924]
[1744538773526,6.16424,1622.3,1621.9,13.639924]
[1744538773725,6.93759,1622.4,1622.0,6.16518]
[1744538774028,6.93759,1622.4,1622.1,1.375718]
[1744538774429,6.16411,1622.3,1622.1,1.375718]
[1744538774924,6.93759,1622.4,1622.1,7.540468]
[1744538775126,12.32776,1622.4,1622.1,1.375718]
[1744538775490,6.16414,1622.3,1622.1,1.375718]
[1744538775724,6.16379,1622.4,1622.1,1.375718]
[1744538775894,6.16379,1622.4,1622.1,7.540438]
[1744538776089,6.16379,1622.4,1622.2,0.7540438]
[1744538776291,18.43992,1622.5,1622.2,0.7540438]
[1744538777123,6.16272,1622.7,1622.3,6.96743]
[1744538777299,6.16298,1622.6,1622.3,6.96743]
[1744538777705,12.3261,1622.6,1622.3,6.96743]
[1744538777905,6.16298,1622.6,1622.4,0.696743]
[1744538778123,6.16298,1622.6,1622.4,0.95566804]
[1744538778326,6.16298,1622.6,1622.4,0.696743]
[1744538778513,6.16195,1622.9,1622.6,6.16291]
[1744538778717,6.16146,1623.0,1622.6,12.32567]
[1744538778718,12.32307,1623.0,1622.6,12.32567]
[1744538779022,12.32307,1623.0,1622.7,1.232567]
[1744538779210,12.32307,1623.0,1622.7,1.4914132]
[1744538779417,6.16186,1622.9,1622.7,1.4914132]
[1744538779639,6.16186,1622.9,1622.7,1.232567]
[1744538779800,6.16186,1622.9,1622.6,6.16276]
[1744538780138,6.16234,1622.8,1622.5,0.8035]
[1744538780504,6.16263,1622.7,1622.6,0.25878235]
[1744538781342,12.32462,1622.8,1622.6,0.25878235]
[1744538781530,12.32465,1622.8,1622.6,0.25878235]
[1744538781903,6.16226,1622.8,1622.5,6.96682]
[1744538782107,6.16226,1622.8,1622.6,0.696682]
[1744538782304,6.16158,1623.0,1622.6,6.859622]
[1744538782537,6.78672347,1622.9,1622.6,6.859622]
[1744538782847,6.16218,1622.8,1622.7,0.25867082]
[1744538783339,6.16218,1622.8,1622.5,0.8035]
[1744538783340,6.16277,1622.7,1622.5,0.8035]
[1744538783637,6.16294,1622.6,1622.3,6.8796]
[1744538783823,6.16294,1622.6,1622.4,0.68796]
[1744538783824,6.78826924,1622.6,1622.4,0.68796]
[1744538784032,6.16332,1622.5,1622.4,0.68796]
[1744538784233,6.16332,1622.5,1622.4,0.94659936]
[1744538784630,6.78864924,1622.5,1622.4,0.94659936]
[1744538785016,6.78864924,1622.5,1622.4,0.25863936]
[1744538785414,0.62532924,1622.5,1622.4,1.02723936]
[1744538785816,12.32653,1622.6,1622.4,1.02723936]
[1744538786016,0.62532924,1622.5,1622.4,0.7686]
[1744538786412,12.95222924,1622.5,1622.4,0.25861633]
[1744538786617,0.62532924,1622.5,1622.4,0.25861633]
[1744538786945,6.78864924,1622.5,1622.4,0.25861633]
[1744538787243,0.62532924,1622.5,1622.4,0.25861633]
[1744538788351,0.62532924,1622.5,1622.4,0.98342596]
[1744538788551,6.16228,1622.8,1622.4,0.98342596]
[1744538788751,0.62532924,1622.7,1622.6,6.16275]
[1744538789048,6.16075,1623.2,1622.7,0.8254]
[1744538789361,6.16075,1623.2,1622.8,6.98734]
[1744538789526,6.16146,1623.0,1622.8,0.8254]
[1744538789722,6.16146,1623.0,1622.9,0.25837276]
[1744538790336,6.1618,1622.9,1622.8,1.524192]
[1744538790537,12.32393,1622.9,1622.7,0.8254]
[1744538792119,6.1618,1622.9,1622.7,0.8254]
[1744538792448,12.32379,1622.9,1622.7,0.8254]
[1744538792649,6.1618,1622.9,1622.7,0.8254]
[1744538794064,12.32454,1622.8,1622.5,0.7713]
[1744538794233,12.32454,1622.8,1622.6,0.25799013]
[1744538794436,6.16256,1622.7,1622.6,0.25799013]
[1744538794638,6.16256,1622.7,1622.5,0.7713]
[1744538794639,12.3253,1622.7,1622.5,0.7713]
[1744538794834,6.16256,1622.7,1622.5,0.7713]
[1744538795135,12.32534,1622.7,1622.4,6.107]
[1744538795450,6.16299,1622.6,1622.4,7.411227]
[1744538795635,6.16299,1622.6,1622.4,1.304227]
[1744538796042,6.16221,1622.8,1622.4,7.467817]
[1744538796357,12.32462,1622.8,1622.5,6.16331]
[1744538796882,12.32462,1622.8,1622.4,13.631407]
[1744538797023,12.32462,1622.8,1622.5,1.62113408]
[1744538797359,12.32462,1622.8,1622.5,0.25799338]
[1744538797548,6.79307223,1622.7,1622.5,0.25799338]
[1744538797752,6.79307223,1622.7,1622.4,6.16359]
[1744538798258,0.63047223,1622.7,1622.5,6.1633]
[1744538799155,0.63047223,1622.7,1622.4,6.16356]
[1744538799360,6.96883,1622.6,1622.5,0.25806071]
[1744538799732,6.16353,1622.5,1622.2,0.7697]
[1744538799931,12.32714,1622.5,1622.2,0.7697]
[1744538800131,0.63047223,1622.4,1622.3,0.25824131]
[1744538801081,0.63047223,1622.4,1622.2,0.7697]
[1744538801281,0.63047223,1622.4,1622.0,0.7559]
[1744538801450,6.16442,1622.3,1622.0,0.7559]
[1744538801650,6.16442,1622.3,1622.0,2.058735]
[1744538801985,0.62977531,1622.2,1622.1,0.25830291]
[1744538802361,0.62977531,1622.2,1622.0,2.058735]
[1744538803845,0.62977531,1622.2,1622.0,8.223885]
[1744538804050,0.62977531,1622.2,1622.0,8.223815]
[1744538804292,0.62977531,1622.2,1622.1,1.08032512]
[1744538804761,6.16378,1622.4,1622.1,1.08032512]
[1744538805088,0.62977531,1622.3,1622.1,6.42264362]
[1744538805397,6.16341,1622.5,1622.2,6.16437]
[1744538805757,6.16396,1622.4,1622.0,8.223875]
[1744538805973,6.16396,1622.4,1622.0,2.058735]
[1744538806257,6.16396,1622.4,1622.1,6.42260703]
[1744538806452,6.16427,1622.3,1622.1,0.25789703]
[1744538806765,12.3286,1622.3,1622.0,6.92105]
[1744538807389,12.32915,1622.2,1622.0,0.7559]
[1744538807592,12.32917,1622.2,1621.9,6.96298]
[1744538807759,6.16449,1622.2,1621.9,0.7974]
[1744538807959,12.32913,1622.2,1622.0,0.25789276]
[1744538808294,12.32913,1622.2,1621.9,6.96296]
[1744538808791,6.16449,1622.2,1621.9,13.12842]
[1744538808950,6.16449,1622.2,1621.9,14.441303]
[1744538809570,6.16416,1622.3,1622.0,0.25775664]
[1744538809893,6.16416,1622.3,1622.0,6.16512]